Cogmind - Beta 14 @@@ ROGUE MODE // 2024.08.23 @ 12:46:05 Player: cabin Result: Destroyed by Y-45 Defender with Beam Rifle Performance ------------- Evolutions (2) 1000 Regions Visited (4) 800 Robots Destroyed (29) 145 Value Destroyed (883) 883 Prototype IDs (1) 20 Alien Tech Used (0) 0 Bonus (0) 0 TOTAL SCORE: 2848 Bonus ------- None Cogmind --------- Core Integrity 0/550 Matter 63/300 Energy 100/100 System Corruption 0% Temperature Cool (18) Movement Core (350) Ox6 Location -8/Materials Parts ------- > --- POWER (2) -------- (None) > --- PROPULSION (2) --- (None) > --- UTILITY (3) ------ Large Storage Unit Improved Terrain Scan Processor > --- WEAPON (4) ------- (None) > --- INVENTORY (15) --- Armored Wheel Armored Wheel Hover Unit Improved Flight Unit Seismic Detector Beam Rifle Datajack Peak State ------------ > --- POWER ------------ Ion Engine > --- PROPULSION ------- Carbon-fiber Leg Armored Wheel > --- UTILITY ---------- Large Storage Unit Advanced Weight Redist. System Improved Terrain Scan Processor > --- WEAPON ----------- Assault Cannon Flak Cannon Flak Cannon Flak Cannon > --- INVENTORY -------- Armored Wheel Hover Unit Improved Flight Unit Seismic Detector Beam Rifle Datajack [Rating: 26] Favorites ----------- Power Ion Engine Engine Ion Engine Propulsion Aluminum Leg Leg Aluminum Leg Wheel Armored Wheel Flight Unit Improved Flight Unit Utility Cooling System Device Cooling System Storage Large Storage Unit Processor Improved Terrain Scan Processor Weapon Particle Gun Energy Gun Particle Gun Ballistic Gun Light Assault Rifle Ballistic Cannon Flak Cannon Build | -11 -10 -10 -9 -8 ------- Run | Yrd Mat Min Mat Mat Slots Evolved 4 | . . . 2 2 Power 1 | . . . 1 . Propulsion . | . . . . . Utility 1 | . . . . 1 Weapon 2 | . . . 1 1 Parts Attached 33 | 5 4 . 20 4 Power 4 | 1 . . 3 . Engine 4 | 1 . . 3 . Core . | . . . . . Reactor . | . . . . . Propulsion 9 | 2 . . 5 2 Treads . | . . . . . Leg 6 | 2 . . 2 2 Wheel 2 | . . . 2 . Hover . | . . . . . Flight 1 | . . . 1 . Utility 6 | . 2 . 3 1 Device 3 | . 2 . 1 . Storage 1 | . . . . 1 Processor 2 | . . . 2 . Hackware . | . . . . . Protection . | . . . . . Artifact . | . . . . . Weapon 14 | 2 2 . 9 1 Energy Gun 7 | . 2 . 5 . Energy Cannon . | . . . . . Ballistic Gun 3 | 2 . . 1 . Ballistic Cannon 4 | . . . 3 1 Launcher . | . . . . . Special Weapon . | . . . . . Impact Weapon . | . . . . . Slashing Weapon . | . . . . . Piercing Weapon . | . . . . . Special Melee Weapon . | . . . . . Unidentified Prototypes 1 | . . . 1 . Parts Lost 9 | . . . 1 8 Power 2 | . . . 1 1 Propulsion 2 | . . . . 2 Utility 1 | . . . . 1 Weapon 4 | . . . . 4 Highest Loss Streak 7 | . . . 1 7 To Critical Strikes . | . . . . . Average Slot Usage (%) 88 | . 80 100 90 76 Engine 13 | . 14 14 15 8 Leg 16 | . 28 28 9 6 Wheel 5 | . . . 11 8 Device 16 | . 10 28 15 7 Storage 1 | . . . . 8 Processor 4 | . . . 6 9 Energy Gun 17 | . 11 28 23 . Ballistic Gun 3 | . 16 . 1 . Ballistic Cannon 8 | . . . 6 28 Peak Build Rating 26 | 5 11 11 20 26 Average Rating 13 | 3 7 11 14 21 On Entrance 9 | . 5 11 11 20 Naked Turns . | . . . . . Heaviest Build 48 | 7 15 15 23 48 Greatest Support 34 | 20 20 20 33 34 Greatest Overweight (x) 9 | . . . 6 9 Average Overweight (x) . | . . . . 1 Largest Inventory Capacity 15 | 5 5 5 5 15 Average Capacity 6 | 5 5 5 5 14 Most Carried 7 | 3 5 5 5 7 Average Carried 4 | . 1 4 4 6 Final Capacity 15 | 5 5 5 5 15 Final Carried 7 | . 3 5 5 7 Class Distribution -------------------- 52% | Mutant 34% | Gunner 13% | Skirmisher Dominant Class ---------------- Mutant | -10/Materials Mutant | -10/Mines Gunner | -9/Materials Gunner | -8/Materials Resources | -11 -10 -10 -9 -8 ----------- Run | Yrd Mat Min Mat Mat Matter Collected 756 | 81 39 91 318 227 Remotely . | . . . . . Salvage Created 892 | . 28 . 537 327 Parts 44 | . 2 . 32 10 Haulers Intercepted 1 | . . . 1 . Recyclers Shooed 1 | . . . 1 . Parts Field Recycled . | . . . . . Retrieved Matter . | . . . . . Parts Self-Destructed . | . . . . . Prevented . | . . . . . Kills | -11 -10 -10 -9 -8 ------- Run | Yrd Mat Min Mat Mat Combat Hostiles Destroyed 24 | . . . 14 10 Guns 8 | . . . 8 . Cannons 15 | . . . 5 10 Classes Destroyed 9 | . 1 . 5 3 Worker 1 | . . . . 1 Builder 1 | . . . . 1 Hauler 1 | . . . 1 . Recycler 1 | . . . 1 . Watcher 1 | . 1 . . . Swarmer 7 | . . . 7 . Grunt 12 | . . . 3 9 Sentry 4 | . . . 4 . Hunter 1 | . . . . 1 Best Kill Streak 6 | . 1 . 6 5 Combat Bots Only 6 | . . . 6 4 Max Kills in Single Turn 2 | . 1 . 2 1 Gunslinging 1 | . . . 1 . Exploded . | . . . . . Melee . | . . . . . Uniques/NPCs Destroyed . | . . . . . Combat | -11 -10 -10 -9 -8 -------- Run | Yrd Mat Min Mat Mat Hostile Shots Fired 215 | . . . 86 129 Missed 61 | . . . 29 32 Damage Taken 2155 | . 45 . 661 1449 Core 659 | . 12 . 95 552 Absorbed by Shields . | . . . . . Core Remaining (%) 90 | 100 . 95 76 . Volleys Fired 58 | . 1 . 31 26 Largest 4 | . 2 . 3 4 Hottest 176 | . 130 . 168 176 Shots Fired 171 | . 2 . 87 82 Gun 68 | . 2 . 66 . Cannon 103 | . . . 21 82 Launcher . | . . . . . Special . | . . . . . Kinetic 103 | . . . 21 82 Thermal 68 | . 2 . 66 . Explosive . | . . . . . Electromagnetic . | . . . . . Robot Hit Streak 14 | . 1 . 14 4 Robot Miss Streak 16 | . . . 11 16 Penetration Max . | . . . . . Secondary Targets 2 | . . . 2 . Max Gunslinging Chain 1 | . . . 1 . Shots Hit Robots 104 | . 1 . 55 48 Core Hits 78 | . 1 . 26 51 Critical Kills . | . . . . . Critical Parts Destroyed . | . . . . . Critical Strikes 8 | . . . 6 2 Burn 6 | . . . 6 . Blast 2 | . . . . 2 Melee Attacks . | . . . . . Impact . | . . . . . Slashing . | . . . . . Piercing . | . . . . . Sneak Attacks . | . . . . . Combat Hostiles . | . . . . . Follow-up Attacks . | . . . . . Damage Inflicted 1851 | . 13 3 854 981 Guns 663 | . 13 . 650 . Cannons 1165 | . . . 192 973 Explosions . | . . . . . Melee . | . . . . . Ramming 23 | . . 3 12 8 Kinetic 1165 | . . . 192 973 Thermal 663 | . 13 . 650 . Explosive . | . . . . . Electromagnetic . | . . . . . Impact . | . . . . . Slashing . | . . . . . Piercing . | . . . . . Highest Corruption . | . . . . . Average Corruption . | . . . . . Corruption Purged . | . . . . . Corruption Blocked . | . . . . . Overload Shots . | . . . . . Overflow Damage 8 | . . . 1 7 Projectiles 8 | . . . 1 7 Explosions . | . . . . . Melee . | . . . . . Knockbacks 18 | . . . . 18 Impact . | . . . . . Kinetic 18 | . . . . 18 Secondary . | . . . . . Self-Inflicted Damage 6 | . . . 6 . Shots . | . . . . . Rammed 1 | . . . 1 . Targets Rammed 4 | . . 1 1 2 Kicked 3 | . . 1 . 2 Crushed . | . . . . . Highest Temperature 410 | . . . 365 410 Average Temperature 135 | . . . 122 144 Received Heat Transfer 834 | . . . 168 666 Effects 4 | . . . 1 3 Shutdowns 2 | . . . 1 1 Interference 2 | . . . . 2 Siege Activations . | . . . . . Robots Corrupted . | . . . . . Combat Hostiles . | . . . . . Parts Fried . | . . . . . Impact Corruptions . | . . . . . Robots Melted 1 | . . . 1 . Combat Hostiles 1 | . . . 1 . Parts Melted 10 | . . . 10 . Heat Transferred 2146 | . 37 . 2109 . Parts Sabotaged . | . . . . . Parts Stolen . | . . . . . Parts Stripped . | . . . . . Power Chain Reactions . | . . . . . Alert | -11 -10 -10 -9 -8 ------- Run | Yrd Mat Min Mat Mat Peak Influence 329 | . 7 2 293 329 Initial 96 | . . 2 . 96 Average 74 | . 1 1 104 180 Maximum Alert Level 1 | . . . 1 1 Low Security (%) 85 | 100 100 100 82 59 Level 1 14 | . . . 17 40 Level 2 . | . . . . . Level 3 . | . . . . . Level 4 . | . . . . . Level 5 . | . . . . . High Security . | . . . . . Max Security . | . . . . . Squads Dispatched 4 | . . . . 4 Investigation 1 | . . . . 1 Extermination . | . . . . . Reinforcement 2 | . . . . 2 Assault . | . . . . . Garrison 1 | . . . . 1 Intercept . | . . . . . Searches Triggered . | . . . . . Construction Impeded . | . . . . . Haulers Reinforced . | . . . . . Active Scanning Responses . | . . . . . Cargo Convoy Interrupts . | . . . . . Stealth | -11 -10 -10 -9 -8 --------- Run | Yrd Mat Min Mat Mat Distress Signals 3 | . . . 2 1 Communications Jammed . | . . . . . Distress Signals . | . . . . . Times Spotted 41 | . 1 . 21 19 Peak Tracking Total 7 | . . . 7 6 Tactical Retreats . | . . . . . Traps | -11 -10 -10 -9 -8 ------- Run | Yrd Mat Min Mat Mat Traps Triggered 3 | . 2 . . 1 Indirectly . | . . . . . Trap Hack Attempts . | . . . . . Triggered . | . . . . . Disarmed . | . . . . . Reprogrammed . | . . . . . Reused . | . . . . . Traps Extracted . | . . . . . Installed . | . . . . . Triggered . | . . . . . Most Traps Carried 2 | . . 2 2 . Machines | -11 -10 -10 -9 -8 ---------- Run | Yrd Mat Min Mat Mat Machines Disabled 1 | . . . . 1 Max in Single Turn 1 | . . . . 1 Machines Repaired . | . . . . . Machines Dismantled . | . . . . . Machines Sabotaged . | . . . . . Overloaded Fab Kills . | . . . . . Hacking | -11 -10 -10 -9 -8 --------- Run | Yrd Mat Min Mat Mat Machines Accessed 4 | . 2 . 2 . Terminals 2 | . 1 . 1 . Fabricators . | . . . . . Repair Stations . | . . . . . Recycling Units 2 | . 1 . 1 . Scanalyzers . | . . . . . Garrison Access . | . . . . . Total Hacks 12 | . 8 . 4 . Successful 7 | . 4 . 3 . Failed 5 | . 4 . 1 . Catastrophic . | . . . . . Database Lockouts . | . . . . . Manual 4 | . 4 . . . Terminals 5 | . 4 . 1 . Fabricators . | . . . . . Repair Stations . | . . . . . Recycling Units 7 | . 4 . 3 . Scanalyzers . | . . . . . Garrison Access . | . . . . . Terminal Hacks 1 | . . . 1 . Branch Access Points 1 | . . . 1 . Fabricator Hacks . | . . . . . Repair Station Hacks . | . . . . . Recycling Unit Hacks 6 | . 4 . 2 . Recycle Component 3 | . 2 . 1 . Process 1 | . 1 . . . Retrieve Matter 2 | . 1 . 1 . Scanalyzer . | . . . . . Garrison Access Hacks . | . . . . . Unauthorized Hacks . | . . . . . Terminals . | . . . . . Fabricators . | . . . . . Repair Stations . | . . . . . Recycling Units . | . . . . . Scanalyzers . | . . . . . Garrison Access . | . . . . . Data Cores Recovered . | . . . . . Used . | . . . . . Hacking Detections 1 | . 1 . . . Full Trace Events 1 | . 1 . . . Feedback Events . | . . . . . Feedback Blocked . | . . . . . Robot Schematics Acquired . | . . . . . Robots Built . | . . . . . Authchips . | . . . . . Time . | . . . . . Total Robot Build Rating . | . . . . . Part Schematics Acquired . | . . . . . Parts Built . | . . . . . Authchips . | . . . . . Time . | . . . . . Total Part Build Rating . | . . . . . Parts Repaired . | . . . . . Time . | . . . . . Parts Recycled 3 | . 2 . 1 . Recycled Matter 74 | . 74 . . . Retrieved Matter 74 | . 74 . . . Retrieved Components . | . . . . . Parts Scanalyzed . | . . . . . Part Schematics Acquired . | . . . . . Parts Damaged . | . . . . . Bothacking | -11 -10 -10 -9 -8 ------------ Run | Yrd Mat Min Mat Mat Used RIF Installer . | . . . . . Robots Hacked . | . . . . . Non-combat . | . . . . . Combat . | . . . . . Robot Hacks Applied . | . . . . . Relay Couplers Released . | . . . . . Fabnet Peak Effective % . | . . . . . Robots Rewired . | . . . . . Allies Hacked . | . . . . . Hacks Repelled . | . . . . . Allies | -11 -10 -10 -9 -8 -------- Run | Yrd Mat Min Mat Mat Total Allies . | . . . . . Largest Group . | . . . . . Highest-Rated Group . | . . . . . Highest-Rated Ally . | . . . . . Total Orders . | . . . . . Ally Attacks . | . . . . . Total Damage . | . . . . . Kills . | . . . . . Allies Corrupted . | . . . . . Allies Melted . | . . . . . Intel | -11 -10 -10 -9 -8 ------- Run | Yrd Mat Min Mat Mat Robot Analysis Total . | . . . . . Derelict Logs Recovered . | . . . . . Drone Launches . | . . . . . Drone Recoveries . | . . . . . Exploration | -11 -10 -10 -9 -8 ------------- Run | Yrd Mat Min Mat Mat Turns Passed 1817 | 93 280 456 595 393 Spaces Moved 1240 | 81 223 371 392 173 Core 27 | 18 . . 1 8 Treads . | . . . . . Legs 879 | 63 223 371 132 90 Wheels 334 | . . . 259 75 Hover . | . . . . . Flight . | . . . . . Fastest Speed 50 | 50 120 120 90 90 Average Speed 123 | 104 120 120 115 163 Slowest Speed 500 | 120 120 120 350 500 Overloaded Moves . | . . . . . Propulsion Burnouts . | . . . . . Robots Hopped . | . . . . . Cave-ins Triggered . | . . . . . Exploration Rate (%) 26 | 4 29 54 32 13 Regions Visited 4 Branch Regions 1 Pre-discovered Areas . | . . . . . Known Exits Taken . | . . . . . Unknown Exits Taken 4 | 1 1 1 1 . Scrap Searched 2 | . . 2 . . Spaces Dug . | . . . . . Terrain Destroyed 3 | . . . . 3 Melee . | . . . . . Projectile 3 | . . . . 3 AOE . | . . . . . Terrain Rammed . | . . . . . Walls Destroyed . | . . . . . Machines Disabled . | . . . . . Actions | -11 -10 -10 -9 -8 --------- Run | Yrd Mat Min Mat Mat Total 1390 | 88 232 382 466 222 Wait 26 | . . 7 4 15 Move 1236 | 80 222 370 391 173 Hop . | . . . . . Pick Up 11 | 3 3 3 2 . Fast Attach 24 | 2 4 . 14 4 Attach 5 | 3 . . 2 . Detach 7 | . 2 . 3 2 Swap 4 | . . . 4 . Drop 15 | . . 1 14 . Fire 58 | . 1 . 31 26 Melee . | . . . . . Ram 1 | . . . 1 . Kick 3 | . . 1 . 2 Crush . | . . . . . Escape Stasis . | . . . . . Rewire . | . . . . . Trap . | . . . . . Miscellaneous . | . . . . . Route ------- -11/Scrapyard -10/Materials -10/Mines -9/Materials (discovered 2 exits: [*Mat] / Min) -8/Materials History --------- Turn | Location | Event 11 | -11/Scrapyard | Discovered new exit (range 15) 94 | -11/Scrapyard | Entered Materials 311 | -10/Materials | Build established: Mutant 327 | -10/Materials | Discovered new exit (range 16) 374 | -10/Materials | Entered Mines 567 | -10/Mines | Found a hidden stash of uninstalled traps 620 | -10/Mines | YI-UF0 nonchalantly dropped a Grenade Launcher on the ground 661 | -10/Mines | Discovered new exit (range 7) 830 | -10/Mines | Entered Materials 830 | -9/Materials | Evolved 2 slots: Power x1, Weapon x1 1245 | -9/Materials | Identified exit to Mines 1414 | -9/Materials | Discovered new exit (range 7) 1425 | -9/Materials | Entered another Materials area 1425 | -8/Materials | Evolved 2 slots: Utility x1, Weapon x1 1609 | -8/Materials | Build established: Gunner 1763 | -8/Materials | Garrison activated, responded to threat 1784 | -8/Materials | Core integrity fell below 50% 1813 | -8/Materials | Core integrity fell below 20% 1818 | -8/Materials | Destroyed by Y-45 Defender with Beam Rifle Last Messages --------------- 01763_ K-01 Serf calls for garrison support. 01763_ ALERT: Activating Garrison Access M001. [Achievement: Troublemaker] 01763_ K-01 Serf destroyed. 01767_ G-47 Trooper knocked back. 01768_ Flak Cannon destroyed. 01770_ G-47 Trooper destroyed. 01775_ Critical hit (Burn: +37). 01779_ Destroyed Imp. Hover Unit. 01782_ G-47 Trooper destroyed. 01782_ G-47 Trooper knocked back. 01782_ Aluminum Leg destroyed. 01787_ Flak Cannon destroyed. 01788_ Critical hit (Burn: +37). 01791_ Overheating: System interference. 01791_ Imp. Terrain Scan Processor temporarily disabled. 01791_ Assault Cannon temporarily disabled. 01796_ Assault Cannon destroyed. 01799_ Ion Engine destroyed. Map ----- +----------------------------------------------------+ | ????????# ! *% #?????????????????????????? | | ????????####+###### = %#?????????????????????????? | | ????????# ##/ %!#?????????????????????????? | | ????????# """##% #?????????????????????????? | | ????????# [ """## #?????????????????????????? | | ????????# """## #?????????????????????????? | | ????????# ## #?????????????????????????? | | ????????# """## #?????????????????????????? | | ????????# """## #?????????????????????????? | | ????????# """## #?????????????????????????? | | ????????# ## ######## #??????????????? | | ????????########### a ??????????????? | | ??????????????????# ??????????????? | | ??????????????????# T ??????????????? | | ??????????????????# ??????????????? | | ??????????????????# """" ???????????????? | | ??????????????????# """" #+#???????????????? | | ??????????????????# """" #?????????????????? | | ??????????????????# =! a #?????????????????? | | ??????????????????#!%* #?????????????????? | | ??????????????????# != o #?????????????????? | | ??????????????????# = #?????????????????? | | ??????????????????# |% *%% ###+### ?????????? | | ??????????????????# !*g*%%% ????????? | | ??????????????????# !!*Y%= % ????????? | | ??????????????????# =!@*[!% a ????????? | | ??????????????????# #####+######?????????????? | | ??????????????????#######????? ?????????????????? | | ??????????????????????????????? ?????????????????? | | ?????????????????????????????????????????????????? | | ?????????????????????????????????????????????????? | | ?????????????????????????????????????????????????? | | ?????????????????????????????????????????????????? | | ?????????????????????????????????????????????????? | | ?????????????????????????????????????????????????? | | ?????????????????????????????????????????????????? | | ?????????????????????????????????????????????????? | | ?????????????????????????????????????????????????? | | ?????????????????????????????????????????????????? | | ?????????????????????????????????????????????????? | | ?????????????????????????????????????????????????? | | ?????????????????????????????????????????????????? | | ?????????????????????????????????????????????????? | | ?????????????????????????????????????????????????? | | ?????????????????????????????????????????????????? | | ?????????????????????????????????????????????????? | | ?????????????????????????????????????????????????? | | ?????????????????????????????????????????????????? | | ?????????????????????????????????????????????????? | | ?????????????????????????????????????????????????? | +----------------------------------------------------+ Best States ------------- Heat Dissipation 72 Energy Generation 15 Energy Capacity 400 Matter Stores 300 Matter Capacity 300 Sight Range 16 Terrain Scan Density 110 Additional Mass Support 9 Evasion (%) 55 Item Schematics ----------------- None Robot Schematics ------------------ None Fabricated ------------ Nothing Alien Tech Used ----------------- None Achievements -------------- It's Just You More Dakka Please Troublemaker Challenges ------------ None Game ------ Seed SpikedFlightCannon Manual? 0 Play Time 00:27:48 Cumulative 5.3 hours Start 2024.08.23 @ 12:09:16 End 2024.08.23 @ 12:46:05 Sessions 2 Manual Loads 0 Difficulty Rogue Special Mode None Game No. 14 Rogue 13 Adventurer 1 Explorer 0 Win Type - Total 0 Types 0/0/0/0/0/0/0/0/0 Lore% 1 Gallery% 8 Achievement% 9 Wizard Run 0 Options --------- Layout 2 ASCII 0 Keyboard 1 Movement Arrows Keybinds 0 Fullscreen 1 Font 24/Smallcaps Map View 50x44 Zoom Use 0% Tactical HUD 1 Map Filters NONE Filters NONE Steam 1 RUN: fd49e77d-b147-4d83-aac6-7d7a4725ea1b